fUSD/lending_fUSD_20241219
["ID","MTS","AMOUNT","RATE_DAILY","PERIOD"]
[345994853,1734615076191,-500.0,0.00023287,4]
[345994854,1734615076200,-500.0,0.00023287,4]
[345994855,1734615076209,-533.31,0.00023287,4]
[345994856,1734615076218,-500.0,0.00023287,4]
[345994857,1734615076228,-745.33,0.00023287,4]
[345994858,1734615076238,-310.28043,0.00023288,7]
[345994859,1734615076246,-209.0,0.0002331,2]
[345994860,1734615076256,-616.67,0.00023328,2]
[345994861,1734615076265,-500.0,0.00023328,2]
[345994862,1734615076275,-255.24347057,0.00023342,2]
[345994863,1734615076283,-700.0,0.00023356,2]
[345994864,1734615076292,-500.0,0.00023356,2]
[345994865,1734615076302,-561.45,0.0002337,2]
[345994866,1734615076311,-525.55,0.0002337,2]
[345994867,1734615076321,-154.7,0.0002337,2]
[345994868,1734615076330,-441.03,0.0002337,2]
[345994869,1734615076340,-300.4,0.0002337,2]
[345994870,1734615076349,-400.85,0.0002337,2]
[345994871,1734615076358,-500.0,0.0002337,2]
[345994872,1734615076368,-500.0,0.0002337,2]
[345994873,1734615076377,-500.0,0.0002337,2]
[345994874,1734615076386,-202.7,0.0002338,2]
[345994875,1734615076396,-800.0,0.00023397,2]
[345994876,1734615076407,-800.0,0.00023397,2]
[345994877,1734615076418,-211.0,0.000234,2]
[345994878,1734615076427,-210.0,0.000234,2]
[345994879,1734615076437,-10478.36095864,0.000234,2]
[345994880,1734615076449,-211.3999581,0.000234,2]
[345994881,1734615076458,-2087.16449147,0.000234,2]
[345994882,1734615076467,-436.94772325,0.000234,2]
[345994883,1734615076477,-255.24347057,0.00023452,2]
[345994884,1734615076489,-616.67,0.00023465,2]
[345994885,1734615076499,-310.28043,0.00023488,7]
[345994886,1734615076508,-200.0,0.0002351,2]
[345994887,1734615076517,-200.0,0.0002351,2]
[345994888,1734615076527,-334.28613062,0.0002351,2]
[345994889,1734615076536,-1304.0,0.00023561,4]
[345994890,1734615076547,-700.0,0.00023561,4]
[345994891,1734615076556,-837.293361,0.00023561,4]
[345994892,1734615076565,-365.360532,0.00023561,4]
[345994893,1734615076575,-1298.302182,0.00023561,4]
[345994894,1734615076584,-720.573861,0.00023561,4]
[345994895,1734615076593,-503.88282508,0.00023561,4]
[345994896,1734615076603,-278.2,0.00023561,4]
[345994897,1734615076612,-368.14667789,0.00023561,4]
[345994898,1734615076622,-500.0,0.00023561,4]
[345994899,1734615076632,-500.0,0.00023561,4]
[345994900,1734615076642,-500.0,0.00023561,4]
[345994901,1734615076651,-156.990062,0.00023561,4]
[345994902,1734615076662,-500.0,0.00023561,4]
[345994903,1734615076671,-500.0,0.00023561,4]
[345994904,1734615076681,-500.0,0.00023561,4]
[345994905,1734615076691,-500.0,0.00023561,4]
[345994906,1734615076700,-500.0,0.00023561,4]
[345994907,1734615076709,-500.0,0.00023561,4]
[345994908,1734615076718,-380.57,0.00023561,4]
[345994909,1734615076729,-505.97,0.00023561,4]
[345994910,1734615076738,-500.0,0.00023561,4]
[345994911,1734615076749,-500.0,0.00023561,4]
[345994912,1734615076758,-1078.18,0.00023561,4]
[345994913,1734615076768,-813.86,0.00023561,4]
[345994914,1734615076778,-537.88,0.00023561,4]
[345994915,1734615076787,-500.0,0.00023561,4]
[345994916,1734615076797,-500.0,0.00023561,4]
[345994917,1734615076806,-638.32,0.00023561,4]
[345994918,1734615076816,-500.0,0.00023561,4]
[345994919,1734615076826,-500.0,0.00023561,4]
[345994920,1734615076836,-500.0,0.00023561,2]
[345994921,1734615076845,-205.15861702,0.00023561,4]
[345994922,1734615076854,-500.0,0.00023561,4]
[345994923,1734615076863,-500.0,0.00023561,4]
[345994924,1734615076872,-500.0,0.00023561,4]
[345994925,1734615076881,-500.0,0.00023561,4]
[345994926,1734615076891,-250.95,0.00023561,4]
[345994927,1734615076901,-500.0,0.00023561,2]
[345994928,1734615076911,-500.0,0.00023561,4]
[345994929,1734615076923,-500.0,0.00023561,4]
[345994930,1734615076933,-391.23,0.00023561,4]
[345994931,1734615076943,-249.64,0.00023561,4]
[345994932,1734615076953,-500.0,0.00023561,4]
[345994933,1734615076962,-500.0,0.00023561,4]
[345994934,1734615076971,-500.0,0.00023561,4]
[345994935,1734615076981,-635.1,0.00023561,4]
[345994936,1734615076991,-350.3,0.00023561,4]
[345994937,1734615077001,-500.0,0.00023561,4]
[345994938,1734615077015,-271.94,0.00023561,4]
[345994939,1734615077025,-500.0,0.00023561,4]
[345994940,1734615077035,-500.0,0.00023561,4]
[345994941,1734615077044,-597.44,0.00023561,4]
[345994942,1734615077054,-500.0,0.00023561,4]
[345994943,1734615077064,-500.0,0.00023561,4]
[345994944,1734615077074,-500.0,0.00023561,4]
[345994945,1734615077083,-500.0,0.00023561,4]
[345994946,1734615077093,-546.68,0.00023561,4]
[345994947,1734615077102,-500.0,0.00023561,4]
[345994948,1734615077113,-500.0,0.00023561,4]
[345994949,1734615077124,-500.0,0.00023561,4]
[345994950,1734615077134,-500.0,0.00023561,4]
[345994951,1734615077145,-500.0,0.00023561,4]
[345994952,1734615077155,-517.51,0.00023561,4]
[345994953,1734615077165,-500.0,0.00023561,4]
[345994954,1734615077175,-1141.3,0.00023561,4]
[345994955,1734615077185,-505.5530872,0.00023561,4]
[345994956,1734615077195,-500.0,0.00023561,4]
[345994957,1734615077204,-500.0,0.00023561,4]
[345994958,1734615077214,-546.46,0.00023561,4]
[345994959,1734615077224,-500.0,0.00023561,4]
[345994960,1734615077234,-500.0,0.00023561,4]
[345994961,1734615077244,-500.0,0.00023561,4]
[345994962,1734615077254,-500.0,0.00023561,4]
[345994963,1734615077264,-500.0,0.00023561,4]
[345994964,1734615077274,-500.0,0.00023561,4]
[345994965,1734615077283,-500.0,0.00023561,4]
[345994966,1734615077292,-500.0,0.00023561,4]
[345994967,1734615077301,-215.15,0.00023561,4]
[345994968,1734615077311,-500.0,0.00023561,4]
[345994969,1734615077321,-506.98,0.00023561,4]
[345994970,1734615077331,-500.0,0.00023561,4]
[345994971,1734615077340,-210.24275411,0.00023561,4]
[345994972,1734615077350,-500.0,0.00023561,4]
[345994973,1734615077359,-638.44,0.00023561,4]
[345994974,1734615077369,-500.0,0.00023561,4]
[345994975,1734615077378,-337.78411196,0.00023561,4]
[345994976,1734615077389,-500.0,0.00023561,4]
[345994977,1734615077398,-500.0,0.00023561,4]
[345994978,1734615077411,-764.61,0.00023561,4]
[345994979,1734615077420,-500.0,0.00023561,4]
[345994980,1734615077430,-500.0,0.00023561,4]
[345994981,1734615077440,-500.0,0.00023561,4]
[345994982,1734615077451,-500.0,0.00023561,4]
[345994983,1734615077460,-500.0,0.00023561,4]
[345994984,1734615077470,-500.0,0.00023561,4]
[345994985,1734615077485,-500.0,0.00023561,4]
[345994986,1734615077496,-429.12,0.00023561,4]
[345994987,1734615077506,-500.0,0.00023561,4]
[345994988,1734615077515,-500.0,0.00023561,4]
[345994989,1734615077525,-500.0,0.00023561,4]
[345994990,1734615077534,-500.0,0.00023561,4]
[345994991,1734615077544,-500.0,0.00023561,4]
[345994992,1734615077553,-154.27860856,0.00023561,4]
[345994993,1734615077564,-428.46468915,0.00023561,4]
[345994994,1734615077577,-500.0,0.00023561,4]
[345994995,1734615077587,-602.84,0.00023561,4]
[345994996,1734615077597,-500.0,0.00023561,4]
[345994997,1734615077607,-500.0,0.00023561,4]
[345994998,1734615077617,-500.0,0.00023561,4]
[345994999,1734615077627,-500.0,0.00023561,4]
[345995000,1734615077637,-687.29,0.00023561,4]
[345995001,1734615077647,-500.0,0.00023561,4]
[345995002,1734615077658,-500.0,0.00023561,4]
[345995003,1734615077668,-1000.0,0.00023561,5]
[345995004,1734615077677,-526.22,0.00023561,4]
[345995005,1734615077687,-500.0,0.00023561,4]
[345995006,1734615077697,-500.0,0.00023561,4]
[345995007,1734615077708,-500.0,0.00023561,4]
[345995008,1734615077719,-500.0,0.00023561,4]
[345995009,1734615077729,-503.75830534,0.00023561,4]
[345995010,1734615077739,-500.0,0.00023561,4]
[345995011,1734615077748,-500.0,0.00023561,4]
[345995012,1734615077758,-500.0,0.00023561,4]
[345995013,1734615077768,-500.0,0.00023561,4]
[345995014,1734615077779,-500.0,0.00023561,4]
[345995015,1734615077943,-535.71549033,0.00023561,4]
[345995016,1734615077954,-482.34,0.00023561,4]
[345995017,1734615077964,-500.0,0.00023561,2]
[345995018,1734615077974,-500.0,0.00023561,4]
[345995019,1734615077985,-500.0,0.00023561,4]
[345995020,1734615077995,-500.0,0.00023561,4]
[345995021,1734615078005,-500.0,0.00023561,4]
[345995022,1734615078015,-500.0,0.00023561,4]
[345995023,1734615078025,-500.0,0.00023561,4]
[345995024,1734615078036,-500.0,0.00023561,4]
[345995025,1734615078046,-580.9,0.00023561,4]
[345995026,1734615078056,-538.37,0.00023561,4]
[345995027,1734615078066,-621.26,0.00023561,4]
[345995028,1734615078077,-2241.66,0.00023561,4]
[345995029,1734615078087,-500.0,0.00023561,4]
[345995030,1734615078097,-500.0,0.00023561,4]
[345995031,1734615078106,-500.0,0.00023561,4]
[345995032,1734615078115,-500.0,0.00023561,4]
[345995033,1734615078125,-408.25,0.00023561,4]
[345995034,1734615078136,-1118.09,0.00023561,4]
[345995035,1734615078147,-500.0,0.00023561,4]
[345995036,1734615078157,-500.0,0.00023561,4]
[345995037,1734615078168,-500.0,0.00023561,4]
[345995038,1734615078178,-506.47,0.00023561,4]
[345995039,1734615078188,-500.0,0.00023561,4]
[345995040,1734615078198,-500.0,0.00023561,4]
[345995041,1734615078208,-500.0,0.00023561,4]
[345995042,1734615078218,-631.58,0.00023561,4]
[345995043,1734615078230,-1198.76,0.00023561,4]
[345995044,1734615078240,-500.0,0.00023561,4]
[345995045,1734615078249,-874.4,0.00023561,4]
[345995046,1734615078259,-500.0,0.00023561,4]
[345995047,1734615078268,-298.29,0.00023561,4]
[345995048,1734615078278,-3217.38,0.00023561,4]
[345995049,1734615078287,-500.0,0.00023561,4]
[345995050,1734615078296,-500.0,0.00023561,4]
[345995051,1734615078305,-500.0,0.00023561,4]
[345995052,1734615078316,-500.0,0.00023561,4]
[345995053,1734615078326,-534.83,0.00023561,4]
[345995054,1734615078336,-500.0,0.00023561,4]
[345995055,1734615078346,-500.0,0.00023561,4]
[345995056,1734615078355,-500.0,0.00023561,4]
[345995057,1734615078365,-500.0,0.00023561,4]
[345995058,1734615078375,-500.0,0.00023561,4]
[345995059,1734615078385,-500.0,0.00023561,4]
[345995060,1734615078394,-500.0,0.00023561,4]
[345995061,1734615078404,-603.72,0.00023561,4]
[345995062,1734615078418,-500.0,0.00023561,4]
[345995063,1734615078428,-500.0,0.00023561,4]
[345995064,1734615078438,-500.0,0.00023561,4]
[345995065,1734615078448,-855.86,0.00023561,4]
[345995066,1734615078458,-638.71,0.00023561,4]
[345995067,1734615078468,-500.0,0.00023561,4]
[345995068,1734615078480,-500.0,0.00023561,4]
[345995069,1734615078491,-500.0,0.00023561,4]
[345995070,1734615078500,-548.14,0.00023561,4]
[345995071,1734615078511,-500.0,0.00023561,4]
[345995072,1734615078520,-500.0,0.00023561,4]
[345995073,1734615078531,-1081.64,0.00023561,4]
[345995074,1734615078541,-500.0,0.00023561,4]
[345995075,1734615078550,-500.0,0.00023561,4]
[345995076,1734615078560,-516.46,0.00023561,4]
[345995077,1734615078571,-686.81,0.00023561,4]
[345995078,1734615078581,-263.86,0.00023561,4]
[345995079,1734615078591,-500.0,0.00023561,4]
[345995080,1734615078601,-605.18,0.00023561,4]
[345995081,1734615078612,-1537.97,0.00023561,4]
[345995082,1734615078622,-1000.0,0.00023561,4]
[345995083,1734615078632,-500.0,0.00023561,4]
[345995084,1734615078643,-500.0,0.00023561,4]
[345995085,1734615078652,-500.0,0.00023561,4]
[345995086,1734615078663,-646.37,0.00023561,4]
[345995087,1734615078673,-500.0,0.00023561,4]
[345995088,1734615078683,-1464.59,0.00023561,4]
[345995089,1734615078692,-500.0,0.00023561,4]
[345995090,1734615078703,-500.0,0.00023561,4]
[345995091,1734615078713,-500.0,0.00023561,4]
[345995092,1734615078723,-925.21,0.00023561,4]
[345995093,1734615078734,-1791.02,0.00023561,4]
[345995094,1734615078745,-308.20666857,0.00023561,4]
[345995095,1734615078756,-1052.83,0.00023561,4]
[345995096,1734615078766,-501.27,0.00023561,4]
[345995097,1734615078776,-1557.59,0.00023561,4]
[345995098,1734615078786,-500.0,0.00023561,4]
[345995099,1734615078796,-1000.0,0.00023561,2]
[345995100,1734615078806,-500.0,0.00023561,4]
[345995101,1734615078816,-500.0,0.00023561,4]
[345995102,1734615078825,-500.0,0.00023561,4]
[345995103,1734615078835,-500.0,0.00023561,4]
[345995104,1734615078845,-500.0,0.00023561,4]
[345995105,1734615078854,-500.0,0.00023561,4]
[345995106,1734615078864,-500.0,0.00023561,4]
[345995107,1734615078874,-500.0,0.00023561,4]
[345995108,1734615078884,-500.0,0.00023561,4]
[345995109,1734615078894,-500.0,0.00023561,4]
[345995110,1734615078904,-500.0,0.00023561,4]
[345995111,1734615078914,-575.95,0.00023561,4]
[345995112,1734615078925,-500.0,0.00023561,4]
[345995113,1734615078935,-500.0,0.00023561,4]
[345995114,1734615078946,-500.0,0.00023561,4]
[345995115,1734615078956,-500.0,0.00023561,4]
[345995116,1734615078966,-500.0,0.00023561,4]
[345995117,1734615078976,-3253.1,0.00023561,4]
[345995118,1734615078986,-651.6,0.00023561,4]
[345995119,1734615078995,-500.0,0.00023561,4]
[345995120,1734615079005,-500.0,0.00023561,4]
[345995121,1734615079015,-516.29,0.00023561,4]
[345995122,1734615079024,-500.0,0.00023561,4]
[345995123,1734615079034,-1091.25,0.00023561,4]
[345995124,1734615079043,-500.0,0.00023561,4]
[345995125,1734615079053,-500.0,0.00023561,4]
[345995126,1734615079063,-500.0,0.00023561,4]
[345995127,1734615079073,-500.0,0.00023561,4]
[345995128,1734615079083,-534.72,0.00023561,4]
[345995129,1734615079093,-1131.52,0.00023561,4]
[345995130,1734615079103,-1112.24,0.00023561,4]
[345995131,1734615079113,-500.0,0.00023561,4]
[345995132,1734615079123,-500.0,0.00023561,4]
[345995133,1734615079133,-500.0,0.00023561,4]
[345995134,1734615079143,-500.0,0.00023561,4]
[345995135,1734615079153,-500.0,0.00023561,4]
[345995136,1734615079163,-570.32,0.00023561,4]
[345995137,1734615079173,-500.0,0.00023561,4]
[345995138,1734615079182,-500.0,0.00023561,4]
[345995139,1734615079191,-500.0,0.00023561,4]
[345995140,1734615079201,-729.89,0.00023561,4]
[345995141,1734615079210,-584.07,0.00023561,4]
[345995142,1734615079220,-608.08,0.00023561,4]
[345995143,1734615079230,-500.0,0.00023561,4]
[345995144,1734615079240,-500.0,0.00023561,4]
[345995145,1734615079250,-1097.38,0.00023561,4]
[345995146,1734615079260,-771.74,0.00023561,4]
[345995147,1734615079270,-500.0,0.00023561,4]
[345995148,1734615079280,-500.0,0.00023561,4]
[345995149,1734615079289,-500.0,0.00023561,4]
[345995150,1734615079299,-500.0,0.00023561,4]
[345995151,1734615079309,-500.0,0.00023561,4]
[345995152,1734615079319,-527.07,0.00023561,4]
[345995153,1734615079328,-500.0,0.00023561,4]
[345995154,1734615079338,-500.0,0.00023561,4]
[345995155,1734615079347,-1446.27,0.00023561,4]
[345995156,1734615079357,-500.0,0.00023561,4]
[345995157,1734615079367,-619.09,0.00023561,4]
[345995158,1734615079377,-500.0,0.00023561,4]
[345995159,1734615079387,-1296.66,0.00023561,4]
[345995160,1734615079396,-3392.8,0.00023561,4]
[345995161,1734615079409,-500.0,0.00023561,4]
[345995162,1734615079419,-2952.13,0.00023561,4]
[345995163,1734615079428,-500.0,0.00023561,4]
[345995164,1734615079438,-500.0,0.00023561,4]
[345995165,1734615079448,-500.0,0.00023561,4]
[345995166,1734615079457,-500.0,0.00023561,4]
[345995167,1734615079466,-500.0,0.00023561,4]
[345995168,1734615079476,-500.0,0.00023561,4]
[345995169,1734615079488,-357.94264118,0.00023561,4]
[345995170,1734615079499,-500.0,0.00023561,4]
[345995171,1734615079508,-500.0,0.00023561,4]
[345995172,1734615079518,-500.0,0.00023561,4]
[345995173,1734615079528,-500.0,0.00023561,4]
[345995174,1734615079538,-500.0,0.00023561,4]
[345995175,1734615079547,-500.0,0.00023561,4]
[345995176,1734615079557,-1258.09,0.00023561,4]
[345995177,1734615079567,-500.0,0.00023561,4]
[345995178,1734615079578,-349.06,0.00023561,4]
[345995179,1734615079588,-531.07660918,0.00023561,4]
[345995180,1734615079597,-340.33678042,0.00023561,4]
[345995181,1734615079607,-500.0,0.00023561,4]
[345995182,1734615079617,-626.35,0.00023561,4]
[345995183,1734615079626,-565.32,0.00023561,4]
[345995184,1734615079636,-575.29,0.00023561,4]
[345995185,1734615079646,-500.0,0.00023561,4]
[345995186,1734615079655,-586.24962498,0.00023561,4]
[345995187,1734615079665,-500.0,0.00023561,4]
[345995188,1734615079674,-500.0,0.00023561,4]
[345995189,1734615079684,-500.0,0.00023561,4]
[345995190,1734615079693,-533.31,0.00023561,4]
[345995191,1734615079702,-590.08,0.00023561,4]
[345995192,1734615079711,-745.33,0.00023561,4]
[345995193,1734615079720,-255.24347057,0.00023562,2]
[345995194,1734615079731,-239.71903188,0.00023567,2]
[345995195,1734615079740,-3389.96986321,0.00023578,2]
[345995196,1734615079749,-616.67,0.00023602,2]
[345995197,1734615079758,-310.28043,0.00023688,7]
[345995198,1734615079768,-500.0,0.00023689,7]
[345995199,1734615079777,-500.0,0.00023689,7]
[345995200,1734615079787,-500.0,0.00023689,7]
[345995201,1734615079797,-255.24347057,0.00023699,2]
[345995202,1734615079806,-209.0,0.0002373,2]
[345995203,1734615079816,-616.67,0.00023739,2]
[345995204,1734615079825,-1000.0,0.0002374,10]
[345995205,1734615079835,-200.0,0.00023745,2]
[345995206,1734615079844,-211.0,0.000238,2]
[345995207,1734615079854,-210.0,0.000238,2]
[345995208,1734615079863,-151.47652019,0.000238,2]
[345995209,1734615079872,-255.24347057,0.00023808,2]
[345995210,1734615079882,-2000.0,0.0002382,2]
[345995211,1734615079891,-667.04568903,0.00023828,5]
[345995212,1734615079901,-1662.89938705,0.00023828,5]
[345995213,1734615079911,-47140.35610236,0.00023829,5]
[345995214,1734615079920,-667.04568903,0.0002383,5]
[345995215,1734615079930,-846.75945676,0.00023831,5]
[345995216,1734615079939,-8308.20165017,0.00023831,5]
[345995217,1734615079949,-47140.35610236,0.00023833,5]
[345995218,1734615079959,-200.0,0.00023833,5]
[345995219,1734615079968,-1662.89938705,0.00023834,5]
[345995220,1734615079977,-53756.03390167,0.00023834,5]
[345995221,1734615079987,-53756.03390167,0.00023834,5]
[345995222,1734615079996,-1304.0,0.00023835,4]
[345995223,1734615080006,-700.0,0.00023835,4]
[345995224,1734615080015,-8308.20165017,0.00023835,5]
[345995225,1734615080025,-837.293361,0.00023835,4]
[345995226,1734615080034,-365.360532,0.00023835,4]
[345995227,1734615080043,-1298.302182,0.00023835,4]
[345995228,1734615080051,-720.573861,0.00023835,4]
[345995229,1734615080060,-500.0,0.00023835,4]
[345995230,1734615080070,-500.0,0.00023835,4]
[345995231,1734615080079,-329.94357119,0.00023835,4]
[345995232,1734615080089,-500.0,0.00023835,4]
[345995233,1734615080099,-500.0,0.00023835,4]
[345995234,1734615080108,-500.0,0.00023835,4]
[345995235,1734615080118,-500.0,0.00023835,4]
[345995236,1734615080127,-500.0,0.00023835,4]
[345995237,1734615080136,-500.0,0.00023835,4]
[345995238,1734615080145,-505.97,0.00023835,4]
[345995239,1734615080155,-500.0,0.00023835,4]
[345995240,1734615080164,-211.46,0.00023835,4]
[345995241,1734615080175,-1078.18,0.00023835,4]
[345995242,1734615080185,-537.88,0.00023835,4]
[345995243,1734615080195,-813.86,0.00023835,4]
[345995244,1734615080205,-500.0,0.00023835,4]
[345995245,1734615080214,-555.76,0.00023835,4]
[345995246,1734615080223,-638.32,0.00023835,4]
[345995247,1734615080234,-500.0,0.00023835,4]
[345995248,1734615080244,-500.0,0.00023835,4]
[345995249,1734615080254,-500.0,0.00023835,2]
[345995250,1734615080264,-500.0,0.00023835,4]
[345995251,1734615080273,-500.0,0.00023835,4]
[345995252,1734615080284,-500.0,0.00023835,4]
[345995253,1734615080294,-500.0,0.00023835,4]
[345995254,1734615080304,-500.0,0.00023835,2]
[345995255,1734615080314,-500.0,0.00023835,4]
[345995256,1734615080325,-500.0,0.00023835,4]
[345995257,1734615080336,-500.0,0.00023835,4]
[345995258,1734615080346,-500.0,0.00023835,4]
[345995259,1734615080356,-500.0,0.00023835,4]
[345995260,1734615080367,-635.1,0.00023835,4]
[345995261,1734615080378,-500.0,0.00023835,4]
[345995262,1734615080387,-500.0,0.00023835,4]
[345995263,1734615080398,-500.0,0.00023835,4]
[345995264,1734615080418,-597.44,0.00023835,4]
[345995265,1734615080438,-208.96,0.00023835,4]
[345995266,1734615080448,-500.0,0.00023835,4]
[345995267,1734615080458,-500.0,0.00023835,4]
[345995268,1734615080467,-500.0,0.00023835,4]
[345995269,1734615080477,-546.68,0.00023835,4]
[345995270,1734615080487,-500.0,0.00023835,4]
[345995271,1734615080498,-500.0,0.00023835,4]
[345995272,1734615080509,-500.0,0.00023835,4]
[345995273,1734615080519,-500.0,0.00023835,4]
[345995274,1734615080530,-500.0,0.00023835,4]
[345995275,1734615080539,-500.0,0.00023835,4]
[345995276,1734615080550,-1141.3,0.00023835,4]
[345995277,1734615080560,-500.0,0.00023835,4]
[345995278,1734615080571,-500.0,0.00023835,4]
[345995279,1734615080583,-500.0,0.00023835,4]
[345995280,1734615080593,-500.0,0.00023835,4]
[345995281,1734615080603,-500.0,0.00023835,4]
[345995282,1734615080613,-500.0,0.00023835,4]
[345995283,1734615080623,-500.0,0.00023835,4]
[345995284,1734615080633,-500.0,0.00023835,4]
[345995285,1734615080644,-500.0,0.00023835,4]
[345995286,1734615080654,-500.0,0.00023835,4]
[345995287,1734615080664,-500.0,0.00023835,4]
[345995288,1734615080675,-506.98,0.00023835,4]
[345995289,1734615080684,-500.0,0.00023835,4]
[345995290,1734615080694,-500.0,0.00023835,4]
[345995291,1734615080704,-500.0,0.00023835,4]
[345995292,1734615080714,-500.0,0.00023835,4]
[345995293,1734615080723,-500.0,0.00023835,4]
[345995294,1734615080735,-764.61,0.00023835,4]
[345995295,1734615080744,-500.0,0.00023835,4]
[345995296,1734615080754,-500.0,0.00023835,4]
[345995297,1734615080763,-500.0,0.00023835,4]
[345995298,1734615080773,-500.0,0.00023835,4]
[345995299,1734615080782,-500.0,0.00023835,4]
[345995300,1734615080791,-500.0,0.00023835,4]
[345995301,1734615080802,-505.40555901,0.00023835,4]
[345995302,1734615080812,-500.0,0.00023835,4]
[345995303,1734615080821,-500.0,0.00023835,4]
[345995304,1734615080831,-500.0,0.00023835,4]
[345995305,1734615080841,-500.0,0.00023835,4]
[345995306,1734615080852,-260.97720806,0.00023835,4]
[345995307,1734615080862,-500.0,0.00023835,4]
[345995308,1734615080871,-500.0,0.00023835,4]
[345995309,1734615080880,-364.96516866,0.00023835,4]
[345995310,1734615080889,-317.29,0.00023835,4]
[345995311,1734615080898,-613.49,0.00023835,4]
[345995312,1734615080908,-687.29,0.00023835,4]
[345995313,1734615080918,-173.21625269,0.00023835,4]
[345995314,1734615080927,-500.0,0.00023835,4]
[345995315,1734615080936,-1000.0,0.00023835,5]
[345995316,1734615080946,-526.22,0.00023835,4]
[345995317,1734615080956,-500.0,0.00023835,4]
[345995318,1734615080966,-342.57,0.00023835,4]
[345995319,1734615080975,-529.11328464,0.00023835,4]
[345995320,1734615080985,-500.0,0.00023835,4]
[345995321,1734615080994,-266.83,0.00023835,4]
[345995322,1734615081004,-500.0,0.00023835,4]
[345995323,1734615081014,-500.0,0.00023835,4]
[345995324,1734615081023,-500.0,0.00023835,4]
[345995325,1734615081032,-303.45,0.00023835,4]
[345995326,1734615081043,-500.0,0.00023835,2]
[345995327,1734615081052,-500.0,0.00023835,4]
[345995328,1734615081061,-500.0,0.00023835,4]
[345995329,1734615081070,-500.0,0.00023835,4]
[345995330,1734615081081,-500.0,0.00023835,4]
[345995331,1734615081090,-500.0,0.00023835,4]
[345995332,1734615081099,-500.0,0.00023835,4]
[345995333,1734615081109,-500.0,0.00023835,4]
[345995334,1734615081258,-580.9,0.00023835,4]
[345995335,1734615081269,-538.37,0.00023835,4]
[345995336,1734615081279,-621.26,0.00023835,4]
[345995337,1734615081289,-2241.66,0.00023835,4]
[345995338,1734615081298,-500.0,0.00023835,4]
[345995339,1734615081307,-500.0,0.00023835,4]
[345995340,1734615081317,-500.0,0.00023835,4]
[345995341,1734615081326,-500.0,0.00023835,4]
[345995342,1734615081336,-1118.09,0.00023835,4]
[345995343,1734615081345,-500.0,0.00023835,4]
[345995344,1734615081354,-500.0,0.00023835,4]
[345995345,1734615081364,-500.0,0.00023835,4]
[345995346,1734615081374,-506.47,0.00023835,4]
[345995347,1734615081383,-500.0,0.00023835,4]
[345995348,1734615081392,-500.0,0.00023835,4]
[345995349,1734615081403,-500.0,0.00023835,4]
[345995350,1734615081416,-631.58,0.00023835,4]
[345995351,1734615081426,-1198.76,0.00023835,4]
[345995352,1734615081436,-483.07809668,0.00023835,4]